bitfinex-derivatives/quotes_SOLF0:USTF0_20241103
["timestamp","ask_amount","ask_price","bid_price","bid_amount"]
[1730649488360,3.1273,159.94,159.91,3.1277]
[1730649488558,3.1273,159.94,159.9,3.128]
[1730649489563,3.127,159.95,159.91,3.1277]
[1730649489860,24.3505,159.97,159.91,3.1277]
[1730649490556,24.3505,159.97,159.86,4.16]
[1730649490763,5.5505,159.97,159.86,4.16]
[1730649490963,5.5505,159.97,159.87,1.4172]
[1730649491268,3.1269,159.96,159.92,3.1274]
[1730649491457,5.5505,159.97,159.87,1.4172]
[1730649491854,5.5505,159.97,159.9,3.128]
[1730649492371,24.3505,159.97,159.87,1.4172]
[1730649492663,24.3505,159.97,159.84,4.16]
[1730649493666,24.3505,159.97,159.82,1.4152]
[1730649493864,2.08839719,159.96,159.82,1.4152]
[1730649494066,3.1287,159.87,159.83,3.1294]
[1730649494266,22.96,159.9,159.82,1.4152]
[1730649494663,18.8,159.92,159.82,1.4152]
[1730649496057,18.8,159.92,159.78,4.16]
[1730649496259,18.8,159.92,159.76,1.3618]
[1730649496468,1.0,159.91,159.77,4.16]
[1730649496774,3.1286,159.87,159.77,7.24181281]
[1730649497468,1.0,159.91,159.77,7.24181281]
[1730649497469,3.1288,159.86,159.77,7.24181281]
[1730649497672,1.0,159.91,159.77,7.24181281]
[1730649497860,1.3867,159.9,159.77,7.24181281]
[1730649498166,1.3867,159.9,159.82,3.1294]
[1730649498374,25.725,159.9,159.82,3.1294]
[1730649498664,3.1289,159.86,159.82,3.1294]
[1730649498867,25.725,159.9,159.81,3.1296]
[1730649499272,3.1291,159.85,159.81,3.1296]
[1730649499465,25.725,159.9,159.81,3.1296]
[1730649499863,25.725,159.9,159.77,4.16]
[1730649500060,3.1296,159.82,159.76,1.3618]
[1730649500367,1.0,159.89,159.76,1.3618]
[1730649500559,1.0,159.89,159.85,3.1289]
[1730649500763,1.0,159.89,159.79,4.16]
[1730649501171,3.1286,159.87,159.79,4.16]
[1730649501369,1.0,159.89,159.79,4.16]
[1730649501671,3.1291,159.85,159.81,3.1296]
[1730649502458,3.1291,159.85,159.79,4.16]
[1730649502459,3.1287,159.87,159.83,3.1292]
[1730649503565,1.0,159.89,159.83,3.1292]
[1730649503766,3.1288,159.86,159.83,3.1292]
[1730649506882,1.0,159.89,159.76,1.3618]
[1730649507178,1.0,159.89,159.76,5.5218]
[1730649507389,3.1303,159.79,159.76,1.3618]
[1730649507572,3.1303,159.79,159.65,6.2656]
[1730649507573,22.96,159.82,159.7,2.7106]
[1730649507877,22.96,159.81,159.7,3.9906]
[1730649508070,4.16,159.8,159.7,3.9906]
[1730649508269,3.1305,159.78,159.7,3.9906]
[1730649509379,3.1305,159.78,159.75,3.1309]
[1730649509576,4.16,159.8,159.75,3.1309]
[1730649509772,3.1303,159.79,159.75,3.1309]
[1730649509977,4.16,159.8,159.7,3.9906]
[1730649510565,4.16,159.82,159.78,3.1303]
[1730649510872,4.16,159.83,159.78,3.1303]
[1730649511285,4.16,159.83,159.7,3.9906]
[1730649511868,3.1298,159.81,159.77,3.1304]
[1730649512184,3.1298,159.81,159.7,3.9906]
[1730649512185,1.3175,159.88,159.7,3.9906]
[1730649512370,3.1294,159.83,159.79,3.13]
[1730649512969,4.16,159.86,159.73,56.75320061]
[1730649513571,7.2889,159.86,159.82,3.1295]
[1730649513767,3.1289,159.86,159.82,3.1295]
[1730649513984,1.3175,159.88,159.74,3.16820105]
[1730649514175,1.3175,159.88,159.73,56.75320061]
[1730649514176,8.6059,159.88,159.73,56.75320061]
[1730649514372,7.2884,159.88,159.73,56.75320061]
[1730649515189,1.4182,159.92,159.73,56.75320061]
[1730649515382,18.8,159.94,159.73,56.75320061]
[1730649515581,4.16,159.93,159.88,3.1282]
[1730649516287,3.1274,159.94,159.9,3.1279]
[1730649516584,4.16,159.95,159.82,4.0307]
[1730649516778,3.1275,159.93,159.89,3.128]
[1730649518381,3.1278,159.92,159.86,3.1287]
[1730649518574,3.1278,159.92,159.82,4.0307]
[1730649518575,22.96,159.95,159.82,4.0307]
[1730649519083,3.128,159.91,159.86,3.1286]
[1730649519690,3.1275,159.93,159.89,3.1281]
[1730649519892,22.96,159.95,159.82,4.0307]
[1730649520096,4.16,159.95,159.82,4.0307]
[1730649520782,5.5782,159.97,159.82,4.0307]
[1730649521092,3.1272,159.95,159.91,3.1278]
[1730649521793,3.1269,159.96,159.92,3.1274]
[1730649522094,3.1269,159.96,159.86,4.16]
[1730649522588,8.7049,159.97,159.93,3.1274]
[1730649522785,7.2867,159.97,159.93,3.1274]
[1730649523792,3.1262,160.0,159.9,3.1278]
[1730649523986,5.5658,160.02,159.91,3.8631]
[1730649524690,4.14,160.04,159.91,8.0031]
[1730649524888,18.8,160.08,159.91,8.0031]
[1730649525083,3.1252,160.05,160.01,3.1257]
[1730649525285,6.9239,160.09,159.96,4.14]
[1730649525481,3.1249,160.06,160.0,3.1259]
[1730649525693,3.1249,160.06,159.97,4.14]
[1730649525884,25.7239,160.09,159.97,4.14]
[1730649526088,1.08766898,160.08,159.97,4.14]
[1730649526394,25.7239,160.09,159.97,4.14]
[1730649526893,3.1254,160.04,159.97,4.14]
[1730649527289,25.7239,160.09,159.97,4.14]
[1730649527487,25.7239,160.09,159.99,3.1261]
[1730649527789,1.08767298,160.08,159.97,4.14]
[1730649528582,3.1254,160.04,160.0,3.126]
[1730649528789,25.7239,160.09,159.97,4.14]
[1730649529294,3.125,160.06,159.98,3.1264]
[1730649529593,25.7239,160.09,159.98,3.1264]
[1730649529897,3.1259,160.01,159.97,7.2665]
[1730649530085,22.94,160.04,159.92,4.14]
[1730649530388,22.94,160.04,159.95,3.1269]
[1730649530585,22.94,160.04,159.92,4.14]
[1730649531993,3.1259,160.01,159.97,3.1266]
[1730649532898,3.1261,160.0,159.97,3.1266]
[1730649533286,3.1261,160.0,159.96,3.1268]
[1730649533793,4.14,160.04,159.92,4.14]
[1730649533991,3.126,160.01,159.92,4.14]
[1730649534591,3.1267,159.97,159.94,3.1272]
[1730649534791,3.1267,159.97,159.92,4.14]
[1730649534988,4.14,160.04,159.92,4.14]
[1730649535192,3.1263,159.99,159.92,4.14]
[1730649535589,22.94,160.04,159.92,4.14]
[1730649535790,3.1265,159.98,159.92,4.14]
[1730649536297,3.1265,159.98,159.94,3.1271]
[1730649536695,3.1265,159.98,159.92,4.14]
[1730649536904,3.10264344,160.03,159.92,4.14]
[1730649537100,3.10264344,160.03,159.91,3.8631]
[1730649537301,1.3309,160.02,159.92,3.1275]
[1730649537601,3.127,159.96,159.92,3.1275]
[1730649537797,3.127,159.96,159.91,3.8631]
[1730649538002,3.1267,159.97,159.93,3.1273]
[1730649538801,3.1264,159.99,159.91,3.8631]
[1730649539190,3.1264,159.99,159.95,3.1269]
[1730649539391,1.3309,160.02,159.95,3.1269]
[1730649539590,3.1266,159.98,159.95,3.1269]
[1730649540303,18.8,160.05,159.91,3.8631]
[1730649540504,22.94,160.05,159.91,3.8631]
[1730649540893,22.94,160.05,159.98,3.1263]
[1730649541089,22.94,160.05,159.91,3.8631]
[1730649541294,3.1261,160.0,159.95,3.127]
[1730649541596,3.1261,160.0,159.91,3.8631]
[1730649541787,3.1261,160.0,159.96,3.1267]
[1730649541995,3.1261,160.0,159.91,3.8631]
[1730649542409,3.1266,159.98,159.91,3.8631]
[1730649542598,22.94,160.04,159.91,3.8631]
[1730649542803,18.8,160.02,159.91,3.8631]
[1730649543100,3.1268,159.97,159.91,3.8631]
[1730649543601,3.1268,159.97,159.92,3.1275]
[1730649543802,1.0,160.03,159.91,3.8631]
[1730649544795,1.0,160.03,159.98,3.1264]
[1730649545210,1.0,160.03,159.93,4.14]
[1730649545403,5.4692,160.07,159.93,4.14]
[1730649545604,3.125,160.06,159.93,4.14]
[1730649545800,5.4692,160.07,159.93,4.14]
[1730649546414,3.1252,160.05,159.93,4.14]
[1730649547209,3.1252,160.05,160.02,3.1256]
[1730649547505,3.1249,160.06,159.93,4.14]
[1730649548107,3.1251,160.05,160.02,3.1256]
[1730649549703,3.1254,160.04,159.93,4.14]
[1730649550509,3.1252,160.05,159.97,3.1265]
[1730649550718,22.94,160.09,159.98,1.3043]
[1730649551304,3.1253,160.04,160.01,3.1258]
[1730649552318,3.125,160.06,160.02,3.1256]
[1730649552523,22.94,160.09,159.99,2.6905]
[1730649552707,18.8,160.09,159.99,2.6905]
[1730649552904,1.416,160.11,159.99,2.6905]
[1730649553520,3.1244,160.09,160.06,3.1249]
[1730649553821,3.1244,160.09,159.99,2.6905]
[1730649554715,3.1244,160.09,160.06,3.1249]
[1730649554909,1.416,160.11,159.99,2.6905]
[1730649555613,3.1247,160.07,160.0,4.14]
[1730649556522,1.416,160.11,160.0,4.14]
[1730649556819,3.1245,160.08,160.0,4.14]
[1730649557020,3.1245,160.08,160.04,3.1251]
[1730649557216,1.3857,160.16,159.99,2.6905]
[1730649557217,18.8,160.22,160.05,4.14]
[1730649557407,18.8,160.22,159.99,2.6905]
[1730649557408,2.6621,160.24,160.06,6.8244]
[1730649557607,2.6621,160.24,160.07,4.14]
[1730649558120,3.1222,160.2,160.07,4.14]
[1730649558319,2.6621,160.24,160.06,2.6844]
[1730649558320,22.94,160.23,160.06,2.6844]
[1730649558515,22.94,160.23,160.07,4.14]
[1730649559822,22.94,160.23,160.16,3.1228]
[1730649559823,3.1221,160.21,160.16,3.1228]
[1730649560118,3.1221,160.21,160.12,4.14]
[1730649560312,3.1223,160.2,160.15,3.123]
[1730649560632,18.8,160.22,160.09,4.14]
[1730649561921,3.1225,160.19,160.14,3.1232]
[1730649562122,18.8,160.22,160.14,3.1232]
[1730649562824,18.8,160.22,160.1,1.3242]
[1730649563522,3.1223,160.2,160.15,3.123]
[1730649563728,2.6621,160.24,160.1,1.3242]
[1730649564127,3.1225,160.19,160.14,3.1233]
[1730649564429,3.1225,160.19,160.1,1.3242]
[1730649565128,3.1221,160.21,160.1,1.3242]
[1730649565622,2.6621,160.24,160.16,3.1228]
[1730649565922,2.6621,160.24,160.12,4.14]
[1730649566419,3.1225,160.19,160.12,4.14]
[1730649566615,2.6621,160.24,160.12,4.14]
[1730649567018,3.1226,160.18,160.14,3.1233]
[1730649567523,3.1226,160.18,160.15,3.1231]
[1730649567727,3.1224,160.19,160.15,3.1231]
[1730649567929,4.14,160.23,160.12,4.14]
[1730649568533,3.1225,160.19,160.15,3.1231]
[1730649569030,4.14,160.23,160.12,4.14]
[1730649569328,20.1456,160.28,160.12,4.14]
[1730649569630,20.1456,160.28,160.15,3.1231]
[1730649569631,3.1224,160.19,160.15,3.1231]
[1730649570726,3.1222,160.2,160.14,3.1233]
[1730649570934,21.572,160.26,160.14,3.1233]
[1730649571117,24.64160074,160.26,160.14,3.1233]
[1730649571317,1.08657229,160.25,160.12,3.1236]
[1730649571523,1.08657229,160.25,160.1,1.3242]
[1730649571830,3.1229,160.17,160.12,3.1237]
[1730649572132,18.8,160.2,160.1,1.3242]
[1730649572521,3.1227,160.17,160.12,3.1235]
[1730649572838,3.1227,160.17,160.1,1.3242]
[1730649573022,3.1227,160.17,160.12,3.1235]
[1730649573522,4.14,160.21,160.1,1.3242]
[1730649574128,3.1221,160.21,160.16,3.1228]
[1730649574323,3.1221,160.21,160.1,1.3242]
[1730649574623,4.14,160.24,160.1,1.3242]
[1730649574933,3.1223,160.2,160.16,3.1228]
[1730649575134,66.11939179,160.25,160.1,1.3242]
[1730649575535,61.97939179,160.25,160.1,1.3242]
[1730649575748,3.122,160.21,160.1,1.3242]
[1730649576031,43.17939179,160.25,160.1,1.3242]
[1730649576227,1.08661103,160.24,160.1,1.3242]
[1730649576931,1.08661103,160.24,160.11,4.14]
[1730649577436,3.1226,160.18,160.14,3.1232]
[1730649578030,61.97939179,160.25,160.11,4.14]
[1730649578232,1.08656018,160.24,160.11,4.14]
[1730649578843,1.08656018,160.24,160.15,3.1231]
[1730649579131,1.08661163,160.23,160.11,4.14]
[1730649579332,3.1221,160.21,160.13,3.1234]
[1730649579633,61.97939179,160.25,160.11,4.14]
[1730649579838,1.08664973,160.24,160.11,4.14]
[1730649580133,3.1221,160.21,160.13,3.1233]
[1730649580328,61.97939179,160.25,160.13,3.1233]
[1730649580537,1.08663453,160.24,160.13,3.1233]
[1730649580835,3.1234,160.14,160.1,1.3242]
[1730649581337,3.1232,160.15,160.11,3.1237]
[1730649581837,3.1233,160.14,160.11,3.1237]
[1730649585127,21.91035613,160.14,159.93,6.2548]
[1730649585329,21.91035613,160.14,159.99,1.3151]
[1730649585839,21.91035613,160.14,160.0,4.14]
[1730649586238,21.91035613,160.14,160.03,3.1254]
[1730649586530,4.14,160.15,160.0,4.14]
[1730649586738,3.9869,160.19,160.01,2.8209]
[1730649587033,4.14,160.18,160.01,2.8209]
[1730649587234,3.1235,160.13,160.09,3.1242]
[1730649587439,7.2232748,160.18,160.02,4.14]
[1730649587744,3.1245,160.09,160.05,3.125]
[1730649587933,3.1245,160.09,160.02,4.14]
[1730649588631,3.1248,160.07,160.02,4.14]
[1730649589233,3.1248,160.07,160.03,3.1254]
[1730649589724,3.125,160.06,160.03,3.1254]
[1730649589931,22.816,160.12,159.99,1.3151]
[1730649590338,3.1251,160.05,160.01,3.1257]
[1730649590529,22.816,160.12,160.01,3.1257]
[1730649591634,22.816,160.12,159.99,1.3151]
[1730649592342,3.1248,160.07,160.03,3.1254]
[1730649596136,1.0,160.11,159.99,1.3151]
[1730649596448,1.0,160.11,160.01,3.1257]
[1730649596746,1.0,160.11,159.99,1.3151]
[1730649597346,3.1248,160.07,160.03,3.1254]
[1730649598248,3.1246,160.08,160.01,3.1258]
[1730649598456,1.0,160.11,159.99,1.3151]
[1730649598635,1.0,160.11,159.98,4.14]
[1730649599354,1.0,160.11,160.01,3.1257]
[1730649599743,1.0,160.11,159.98,4.14]
[1730649600062,3.1256,160.03,159.99,3.1262]
[1730649600557,1.0,160.11,159.95,1.3315]
[1730649600852,1.0,160.11,159.97,3.1265]
[1730649600853,3.126,160.01,159.97,3.1265]
[1730649601355,4.12,160.05,159.87,6.2571]
[1730649601649,18.8,160.03,159.88,2.66]
[1730649601849,18.8,160.03,159.89,4.12]
[1730649602050,3.1263,159.99,159.95,3.1269]
[1730649603542,3.1264,159.99,159.95,3.1269]
[1730649604045,18.8,160.03,159.95,3.1269]
[1730649604254,18.8,160.03,159.91,4.12]
[1730649605255,3.1262,160.0,159.94,3.1272]
[1730649605556,18.8,160.03,159.91,4.12]
[1730649605756,3.1262,160.0,159.95,3.127]
[1730649605956,18.8,160.03,159.95,3.127]
[1730649606254,18.8,160.03,159.91,4.12]
[1730649608148,18.8,160.03,159.88,4.0021]
[1730649608344,25.051,160.03,159.88,4.0021]
[1730649608548,3.1278,159.91,159.87,3.1285]
[1730649608745,18.8,159.96,159.85,4.12]
[1730649608959,22.92,159.96,159.85,4.12]
[1730649609145,3.1278,159.92,159.87,3.1284]
[1730649609349,3.1278,159.92,159.85,4.12]
[1730649609350,5.401,159.96,159.85,4.12]
[1730649610163,5.401,159.96,159.81,4.0289]
[1730649610458,5.401,159.96,159.82,4.12]
[1730649610756,4.12,159.96,159.82,4.12]
[1730649610963,4.12,160.0,159.82,4.12]
[1730649611159,22.92,160.0,159.82,4.12]
[1730649611356,22.92,160.0,159.9,3.1279]
[1730649611558,22.92,160.0,159.87,4.12]
[1730649611961,3.1281,159.9,159.87,7.2485]
[1730649612163,3.1281,159.9,159.87,3.1285]
[1730649612363,3.1281,159.9,159.83,4.12]
[1730649612364,3.1282,159.89,159.85,3.1288]
[1730649612763,2.7197,159.97,159.81,4.0289]
[1730649612764,4.12,159.95,159.83,4.12]
[1730649612962,3.1275,159.93,159.89,3.128]
[1730649613162,4.12,159.95,159.89,3.128]
[1730649613461,4.12,159.95,159.83,4.12]
[1730649613462,3.1274,159.94,159.9,3.1279]
[1730649613670,4.12,159.95,159.83,4.12]
[1730649614372,3.1278,159.91,159.83,4.12]
[1730649615066,3.1285,159.88,159.83,4.12]
[1730649615272,1.406,159.94,159.83,4.12]
[1730649615770,3.1283,159.89,159.85,3.1289]
[1730649615967,1.406,159.94,159.82,4.14]
[1730649616163,3.1282,159.9,159.86,3.1287]
[1730649616471,1.406,159.94,159.82,4.14]
[1730649617365,3.1276,159.93,159.89,3.1281]
[1730649617760,4.14,159.96,159.82,4.14]
[1730649618557,3.1272,159.94,159.9,3.1278]
[1730649620181,3.127,159.95,159.82,4.14]
[1730649620958,3.127,159.95,159.91,3.1277]
[1730649621162,3.1277,159.92,159.87,4.14]
[1730649621484,5.5383,159.98,159.93,3.1273]
[1730649621675,1.3983,159.98,159.93,3.1273]
[1730649622773,1.0,159.99,159.95,3.127]
[1730649622975,1.0,159.99,159.88,4.0831]
[1730649623275,3.1267,159.97,159.91,3.1277]
[1730649623469,1.0,159.99,159.88,4.0831]
[1730649623863,1.0,159.99,159.92,3.1275]
[1730649624775,3.1266,159.97,159.92,3.1275]
[1730649625069,1.0,159.99,159.92,3.1275]
[1730649625377,3.1272,159.95,159.91,3.1278]
[1730649626078,3.1272,159.95,159.92,3.1276]
[1730649627276,3.1268,159.97,159.93,3.1274]
[1730649627582,1.0,159.99,159.88,4.0831]
[1730649627972,3.1265,159.98,159.94,3.1271]
[1730649629278,1.0,159.99,159.88,4.0831]
[1730649629674,22.94,160.01,159.85,3.1289]
[1730649629889,18.8,159.99,159.81,52.56311376]
[1730649630177,3.1291,159.85,159.81,3.1297]
[1730649630366,4.12,159.91,159.79,4.12]
[1730649630561,4.12,159.9,159.79,4.12]
[1730649630771,3.129,159.86,159.78,3.1302]
[1730649630976,3.129,159.86,159.78,4.12]
[1730649632283,4.12,159.9,159.78,4.12]
[1730649632581,4.12,159.94,159.78,4.12]
[1730649632763,4.12,159.94,159.82,3.1294]
[1730649632963,4.12,159.94,159.83,8.3074]
[1730649633163,1.4148,159.96,159.84,4.12]
[1730649633884,1.0,159.97,159.84,4.12]
[1730649634274,1.0,159.97,159.92,3.1275]
[1730649634878,4.12,159.98,159.89,4.12]
[1730649635174,3.1262,160.0,159.89,4.12]
[1730649635382,1.3374,160.02,159.89,4.12]
[1730649635770,4.4631,160.02,159.92,3.1274]
[1730649635967,1.3374,160.02,159.93,4.1629]
[1730649636782,3.126,160.01,159.96,3.1267]
[1730649637083,3.126,160.01,159.93,4.1629]
[1730649637084,1.3374,160.02,159.93,4.1629]
[1730649637479,3.1267,159.97,159.93,7.2903]
[1730649637786,3.1267,159.97,159.93,4.517]
[1730649637992,1.3374,160.02,159.89,4.12]
[1730649638489,3.127,159.96,159.91,3.1277]
[1730649638685,3.127,159.96,159.89,4.12]
[1730649639185,1.3374,160.02,159.89,4.12]
[1730649639381,3.1263,159.99,159.95,3.127]
[1730649639576,1.3374,160.02,159.89,4.12]
[1730649639780,3.1265,159.98,159.95,3.127]
[1730649639981,1.3374,160.02,159.89,4.12]
[1730649640683,3.1267,159.97,159.9,1.3729]
[1730649640990,3.1267,159.97,159.93,3.1273]
[1730649641674,1.3374,160.02,159.9,1.3729]
[1730649641880,172.6145602,160.88,159.91,2.6811]
[1730649641881,45.02,160.1,159.91,2.6811]
[1730649642075,5.20775403,160.09,159.91,2.6811]
[1730649642274,3.1254,160.04,160.0,3.126]
[1730649642775,3.1254,160.04,159.96,4.12]
[1730649643173,4.12,160.09,159.96,4.12]
[1730649643375,4.12,160.09,159.97,1.3729]
[1730649643993,3.125,160.06,159.97,1.3729]
[1730649644487,3.125,160.06,160.01,3.1257]
[1730649644788,4.12,160.09,159.97,1.3729]
[1730649645388,1.08768796,160.08,159.96,4.12]
[1730649645685,1.08768796,160.08,159.97,3.1266]
[1730649646078,3.126,160.01,159.97,3.1266]
[1730649646591,1.0,160.08,159.96,4.12]
[1730649647285,1.0876933,160.07,159.92,1.3099]
[1730649647687,3.1266,159.98,159.93,3.1273]
[1730649648186,3.1268,159.97,159.93,3.1273]
[1730649649373,3.1268,159.97,159.92,1.3099]
[1730649649374,3.1262,159.99,159.95,3.1269]
[1730649650995,3.1269,159.96,159.92,4.4374]
[1730649651177,3.1269,159.96,159.92,3.1275]
[1730649651376,3.1269,159.96,159.91,2.6811]
[1730649651377,1.392,160.01,159.91,2.6811]
[1730649651582,1.392,160.01,159.85,1.3595]
[1730649651897,1.392,160.01,159.86,2.682]
[1730649652086,1.392,160.01,159.86,1.3687]
[1730649652276,2.08813396,160.0,159.83,5.4333]
[1730649652484,2.08813396,160.0,159.89,3.1281]
[1730649652485,3.1276,159.93,159.89,3.1281]
[1730649652680,4.12,159.96,159.83,8.1615]
[1730649653081,4.12,159.96,159.93,3.1273]
[1730649653291,3.1267,159.97,159.93,3.1273]
[1730649653485,3.1267,159.97,159.88,4.12]
[1730649653686,3.1265,159.98,159.94,3.1271]
[1730649654092,5.12,160.0,159.94,3.1271]
[1730649654599,5.12,160.0,159.88,4.12]
[1730649654791,4.12,160.0,159.88,4.12]
[1730649655395,4.12,160.0,159.93,3.1273]
[1730649655396,3.1267,159.97,159.93,3.1273]
[1730649656087,4.12,160.0,159.93,3.1273]
[1730649656689,3.1267,159.97,159.93,3.1273]
[1730649658095,4.12,160.0,159.88,4.12]
[1730649658399,4.12,160.04,159.88,4.12]
[1730649659086,3.1263,159.99,159.96,3.1267]
[1730649659494,4.12,160.04,159.93,4.12]
[1730649659795,3.1262,160.0,159.96,3.1267]
[1730649660189,3.126,160.01,159.97,3.1265]
[1730649660396,4.12,160.07,159.94,4.1129]
[1730649660903,3.1256,160.03,159.94,4.1129]
[1730649661206,1.4057,160.1,159.94,4.1129]
[1730649661400,352.63072801,160.2,160.06,3.1247]
[1730649661401,3.124,160.11,160.06,3.1247]
[1730649661599,46.33302966,160.14,160.02,4.12]
[1730649661600,42.21302966,160.14,160.02,4.12]
[1730649661907,3.123,160.16,160.03,3.9922]
[1730649662115,11.78743319,160.26,160.03,3.9922]
[1730649662116,1.3897,160.21,160.03,3.9922]
[1730649662293,1.08694923,160.2,160.03,7.14811585]
[1730649662497,6.8043,160.26,160.03,7.14811585]
[1730649662802,1.0868723,160.25,160.03,7.14811585]
[1730649663203,3.1222,160.2,160.03,7.14811585]
[1730649664007,1.0,160.25,160.03,7.14811585]
[1730649664314,1.3897,160.26,160.03,7.14811585]
[1730649664608,1.08651862,160.25,160.03,7.14811585]
[1730649664801,1.08651862,160.25,160.04,1.14797169]
[1730649665408,1.08651862,160.25,160.05,4.12]
[1730649665808,3.122,160.21,160.15,3.1231]
[1730649666006,1.08651862,160.25,160.14,4.12]
[1730649666308,4.12,160.25,160.12,4.12]
[1730649666497,1.3137,160.24,160.12,4.12]
[1730649666703,4.1011,160.24,160.12,4.12]
[1730649666898,3.1231,160.16,160.1,3.1241]
[1730649667103,4.12,160.19,160.1,3.1241]
[1730649667404,4.12,160.19,160.07,4.12]
[1730649667611,3.1227,160.18,160.07,4.12]
[1730649667907,4.12,160.22,160.07,4.12]
[1730649668092,3.1226,160.18,160.13,3.1235]
[1730649668305,2.6998,160.24,160.12,4.12]
[1730649668509,4.12,160.26,160.13,2.7133]
[1730649668697,3.1217,160.23,160.16,3.1228]
[1730649668898,4.12,160.26,160.14,1.395]
[1730649669403,4.12,160.26,160.14,4.5183]
[1730649669603,4.12,160.26,160.14,1.395]
[1730649670000,3.1219,160.22,160.17,3.1227]
[1730649670511,3.122,160.21,160.14,1.395]
[1730649670699,3.122,160.21,160.16,3.1229]
[1730649670902,4.12,160.26,160.14,1.395]
[1730649671205,4.12,160.26,160.16,3.1229]
[1730649671401,4.12,160.26,160.14,1.395]
[1730649672399,1.0,160.25,160.11,4.12]
[1730649672603,1.0,160.25,160.06,4.12]
[1730649672818,1.0,160.25,160.1,3.124]
[1730649673311,3.1233,160.15,160.1,3.124]
[1730649673613,4.12,160.19,160.08,3.1243]
[1730649673805,3.1238,160.12,160.04,8.1596]
[1730649674000,5.4573,160.18,160.04,4.0396]
[1730649674201,5.4573,160.18,160.05,3.125]
[1730649674507,1.3923,160.17,160.05,3.125]
[1730649674701,1.3923,160.17,160.08,3.1243]
[1730649674897,3.1237,160.12,160.04,8.1596]
[1730649675107,6.4573,160.18,160.04,8.1596]
[1730649675299,6.4573,160.18,160.05,3.1249]
[1730649675509,3.1242,160.1,160.05,3.1249]
[1730649675709,3.1242,160.1,160.04,8.1596]
[1730649675898,6.4573,160.18,160.08,3.1244]
[1730649676103,6.4573,160.18,160.04,8.1596]
[1730649676615,7.2426,160.18,160.04,8.1596]
[1730649676806,3.1226,160.18,160.04,8.1596]
[1730649677006,1.3969,160.21,160.04,8.1596]
[1730649677714,3.1225,160.19,160.14,3.1232]
[1730649677914,4.12,160.22,160.14,3.1232]
[1730649678424,4.12,160.22,160.11,4.12]
[1730649678723,4.12,160.22,160.15,3.123]
[1730649679106,3.1225,160.19,160.15,3.123]
[1730649679711,3.1225,160.19,160.14,3.1232]
[1730649681019,5.3987,160.24,160.12,2.7187]
[1730649681020,3.1221,160.2,160.16,3.1229]
[1730649681213,3.1221,160.2,160.12,2.7187]
[1730649681516,3.1221,160.2,160.15,3.123]
[1730649681700,3.1221,160.2,160.12,2.7187]
[1730649682107,3.122,160.21,160.12,2.7187]
[1730649682309,1.4088,160.26,160.12,2.7187]
[1730649682517,3.1215,160.24,160.13,1.2839]
[1730649682711,1.4088,160.26,160.13,1.2839]